bitfinex/quotes_ETHUSD_20250626
["timestamp","ask_amount","ask_price","bid_price","bid_amount"]
[1750908244168,6.976,2499.1,2498.6,4.93002156]
[1750908244355,7.176,2499.1,2498.8,4.00182789]
[1750908244567,0.95370684,2499.6,2498.7,4.00208108]
[1750908244568,1.967,2499.6,2498.7,4.00208108]
[1750908244790,0.32498471,2499.5,2499.0,4.0014833]
[1750908245003,0.32498471,2499.5,2499.1,0.2]
[1750908245300,9.143,2499.7,2499.2,4.92899391]
[1750908245459,0.12498471,2499.6,2499.1,0.2]
[1750908245773,0.2,2499.2,2498.7,4.20194665]
[1750908246268,0.12498965,2499.1,2498.7,4.20194665]
[1750908246469,0.2,2499.2,2498.8,4.00191239]
[1750908246995,0.12498951,2499.1,2498.7,5.1152428]
[1750908247155,0.12499873,2499.0,2498.5,4.00228308]
[1750908247356,0.32499873,2498.9,2498.5,4.20228308]
[1750908247561,0.2,2498.9,2498.5,4.20228308]
[1750908247986,0.2,2498.9,2498.6,4.00218742]
[1750908249087,11.967,2499.2,2498.5,1.11367806]
[1750908249088,11.967,2499.2,2498.8,4.00192092]
[1750908249293,0.3249935,2499.1,2498.7,4.00202484]
[1750908249494,0.1249935,2499.0,2498.8,4.00190429]
[1750908249659,0.2,2499.1,2498.9,4.00176077]
[1750908249989,0.1249898,2499.0,2498.8,4.00185538]
[1750908250196,0.12499332,2498.9,2498.7,4.00202521]
[1750908250367,0.2,2499.1,2498.7,4.00202521]
[1750908250569,0.12499269,2499.0,2498.8,4.00177504]
[1750908250765,0.12499269,2498.9,2498.8,4.00177504]
[1750908250974,0.12499269,2498.9,2498.6,4.20217807]
[1750908251182,11.967,2499.2,2498.5,4.00228144]
[1750908251183,0.12499587,2498.8,2498.5,4.00228144]
[1750908251381,0.2,2498.9,2498.6,4.00214585]
[1750908251665,10.0,2499.8,2499.1,4.00134126]
[1750908251882,0.2,2499.6,2499.1,4.00134126]
[1750908252191,2.0799802,2499.5,2499.1,4.20128397]
[1750908252363,0.1249802,2499.4,2499.2,4.00125958]
[1750908252566,0.1249802,2499.3,2499.2,4.00125958]
[1750908253599,0.1249802,2499.3,2499.1,0.2]
[1750908253895,0.12497427,2499.2,2498.9,4.00169692]
[1750908254097,0.12497427,2499.1,2498.8,4.20191447]
[1750908254300,0.12497427,2499.0,2498.8,0.2]
[1750908254600,0.12497427,2498.9,2498.2,4.9342692]
[1750908254807,0.12497427,2498.9,2498.0,8.925]
[1750908254808,9.04897427,2498.8,2498.0,4.00307884]
[1750908254977,11.0824643,2498.7,2497.9,4.93471739]
[1750908255178,0.12497427,2498.6,2497.9,4.93471739]
[1750908255375,0.12497427,2498.5,2497.9,4.93471739]
[1750908255583,0.12497427,2498.4,2498.2,4.00275236]
[1750908255907,24.71799978,2499.3,2497.8,4.00340595]
[1750908255908,0.12500973,2498.3,2497.8,4.00340595]
[1750908256111,0.12500973,2498.2,2497.8,4.00340595]
[1750908256285,10.0,2498.5,2497.8,4.00340595]
[1750908256486,10.0,2498.5,2497.3,4.22465808]
[1750908256487,0.12502931,2498.4,2497.3,1.1518015]
[1750908256719,9.601,2499.3,2498.0,4.0031804]
[1750908256720,0.12502931,2498.3,2498.0,4.0031804]
[1750908256881,0.12502931,2498.2,2498.0,4.89698958]
[1750908257076,0.95729846,2498.8,2498.1,4.00290629]
[1750908257287,0.95729846,2498.8,2497.3,0.2204015]
[1750908257288,0.12502369,2498.7,2497.8,4.00348655]
[1750908257489,0.12502369,2498.6,2497.8,4.00348655]
[1750908257731,9.88029846,2498.8,2497.7,4.87597037]
[1750908257732,0.12502369,2498.5,2497.7,4.87597037]
[1750908257894,0.12502369,2498.5,2497.8,0.48759704]
[1750908258096,0.12502369,2498.5,2497.3,2.1754015]
[1750908258097,0.55,2498.4,2497.3,0.2204015]
[1750908258446,0.95729846,2498.6,2497.7,4.87257682]
[1750908258592,10.0,2498.5,2497.9,4.00320305]
[1750908259112,10.0,2498.5,2497.7,4.00366384]
[1750908259431,10.0,2498.5,2497.7,4.80443062]
[1750908259924,10.0,2498.5,2497.7,0.80076678]
[1750908260127,10.0,2498.5,2497.7,4.0036714]
[1750908261329,0.12503468,2498.4,2497.5,4.0038692]
[1750908261530,0.12503468,2498.3,2497.7,0.7973]
[1750908261713,1.956,2498.8,2498.2,4.00275854]
[1750908262027,0.12501927,2498.7,2498.1,4.00293842]
[1750908262324,6.966,2498.9,2498.2,5.20043462]
[1750908262325,0.12501213,2498.6,2498.2,5.20043462]
[1750908262535,1.956,2498.9,2498.2,1.19759384]
[1750908262737,0.12501262,2498.8,2498.2,0.7973]
[1750908263030,0.12501262,2498.7,2498.0,0.7973]
[1750908263206,0.12501262,2498.6,2497.7,0.7973]
[1750908263402,0.12501262,2498.5,2497.7,0.7973]
[1750908263613,0.12501262,2498.4,2497.8,4.0035231]
[1750908263819,10.0,2498.5,2497.9,0.48008231]
[1750908264018,0.12502355,2498.4,2497.9,0.48008231]
[1750908264332,10.0,2498.5,2497.9,0.48008231]
[1750908264500,0.12502226,2498.4,2497.9,0.48008231]
[1750908264703,10.2,2498.5,2498.0,0.2]
[1750908265032,0.12502216,2498.4,2498.0,0.2]
[1750908265203,0.2,2498.5,2498.1,4.00299749]
[1750908265403,12.156,2498.6,2498.2,0.2]
[1750908265628,0.12502042,2498.5,2498.2,0.2]
[1750908265837,12.156,2498.6,2498.2,0.2]
[1750908266041,0.12501867,2498.5,2498.2,0.2]
[1750908266335,12.156,2498.6,2498.2,0.2]
[1750908266504,0.12501946,2498.5,2498.2,0.2]
[1750908266705,12.156,2498.6,2498.2,0.2]
[1750908266925,0.1250197,2498.5,2498.2,0.2]
[1750908267234,12.156,2498.6,2498.2,0.2]
[1750908267400,0.12501803,2498.5,2498.2,0.2]
[1750908267600,12.156,2498.6,2498.2,0.2]
[1750908267800,0.12501828,2498.5,2498.2,0.2]
[1750908268103,0.2,2498.6,2498.2,0.2]
[1750908268303,0.12501726,2498.5,2498.2,0.2]
[1750908268630,0.12502058,2498.4,2498.2,0.2]
[1750908268830,0.2,2498.6,2498.2,0.2]
[1750908268996,0.12502092,2498.5,2498.0,0.46836054]
[1750908269308,0.12502092,2498.5,2498.0,0.2]
[1750908269309,0.2,2498.5,2498.0,0.2]
[1750908269954,0.2,2498.5,2497.6,4.00381829]
[1750908269955,0.12502538,2498.4,2497.6,0.8132]
[1750908270118,0.2,2498.1,2497.6,0.2]
[1750908270318,0.12502538,2498.0,2497.6,0.2]
[1750908270518,0.2,2498.1,2497.6,0.2]
[1750908270716,0.2,2497.9,2497.5,0.2]
[1750908271040,0.2,2497.9,2497.5,0.7237731]
[1750908271239,0.2,2497.9,2497.5,0.2]
[1750908271404,0.32504332,2498.1,2497.6,4.20370209]
[1750908271604,0.2,2498.1,2497.6,4.20370209]
[1750908271825,0.2,2498.1,2497.6,0.2]
[1750908272009,0.12504902,2498.0,2497.6,0.2]
[1750908272204,0.2,2498.1,2497.6,0.2]
[1750908272498,0.12504701,2498.0,2497.6,0.2]
[1750908272702,0.2,2498.1,2497.6,0.2]
[1750908273019,0.12504889,2498.0,2497.3,0.2204015]
[1750908273334,0.2,2497.6,2497.3,0.2204015]
[1750908274019,0.15,2497.6,2497.3,0.2204015]
[1750908274903,0.12505943,2498.1,2497.3,0.2204015]
[1750908275103,2.08105943,2498.0,2497.3,0.2204015]
[1750908275439,0.55,2497.8,2497.3,0.2204015]
[1750908275609,0.12505943,2497.7,2497.3,0.2204015]
[1750908275809,0.12505943,2497.6,2497.3,0.2204015]
[1750908276010,0.55,2497.8,2497.3,0.2204015]
[1750908276213,0.12507069,2497.7,2497.3,0.2204015]
[1750908276433,0.12507069,2497.6,2497.3,0.2204015]
[1750908276632,0.12507064,2497.7,2497.3,0.2204015]
[1750908276936,0.12507064,2497.6,2497.3,0.2204015]
[1750908277148,0.55,2497.8,2497.3,0.2204015]
[1750908277345,0.12507027,2497.7,2497.3,0.2204015]
[1750908277539,0.12507027,2497.6,2497.3,0.2204015]
[1750908277738,0.12507027,2497.7,2497.3,0.2204015]
[1750908277940,0.12507027,2497.6,2497.3,0.2204015]
[1750908278137,0.12507027,2497.7,2497.3,0.2204015]
[1750908278349,1.956,2497.7,2497.3,0.2204015]
[1750908279050,10.0,2497.8,2497.3,0.2204015]
[1750908279051,11.956,2497.8,2497.3,0.2204015]
[1750908279215,0.12506499,2497.7,2497.3,0.2204015]
[1750908279419,0.12506499,2497.7,2497.3,5.04766017]
[1750908279641,10.0,2497.8,2497.3,5.04760049]
[1750908279851,10.0,2497.8,2497.4,4.00411349]
[1750908280051,10.0,2497.8,2497.3,1.04334349]
[1750908280052,10.0,2497.8,2497.3,5.04761172]
[1750908280250,0.12506351,2497.7,2497.3,0.2204015]
[1750908280442,10.0,2497.8,2497.3,0.2204015]
[1750908280644,0.12506197,2497.7,2497.3,0.2204015]
[1750908280838,10.0,2497.8,2497.3,4.224718]
[1750908281050,10.0,2497.8,2497.3,0.2204015]
[1750908281254,0.12506075,2497.7,2497.3,0.2204015]
[1750908281456,10.0,2497.8,2497.3,0.2204015]
[1750908282327,0.12505722,2497.7,2497.3,0.2204015]
[1750908282656,10.0,2497.8,2497.3,0.2204015]
[1750908282844,0.12505724,2497.7,2497.3,0.2204015]
[1750908283042,10.0,2497.8,2497.3,4.2247141]
[1750908283257,0.12505444,2497.7,2497.3,4.64719834]
[1750908283462,10.0,2497.8,2497.3,4.64719834]
[1750908283653,0.12505613,2497.7,2497.3,4.64719834]
[1750908283854,10.0,2497.8,2497.3,4.64719834]
[1750908284061,0.12505684,2497.7,2497.4,4.46887038]
[1750908284260,10.0,2497.8,2497.4,4.46887038]
[1750908284560,0.12505499,2497.7,2497.4,0.46471983]
[1750908284766,10.0,2497.8,2497.4,0.46471983]
[1750908284977,0.12505559,2497.7,2497.4,0.66471983]
[1750908285266,10.2,2497.8,2497.4,0.66471983]
[1750908285440,0.12505574,2497.7,2497.4,0.66471983]
[1750908285746,10.2,2497.8,2497.4,0.66471983]
[1750908286573,0.12505576,2497.7,2497.4,0.66471983]
[1750908286776,10.2,2497.8,2497.4,0.66471983]
[1750908287063,0.12505577,2497.7,2497.4,0.66471983]
[1750908287269,10.2,2497.8,2497.4,0.66471983]
[1750908287445,0.12505568,2497.7,2497.4,0.66471983]
[1750908287647,10.2,2497.8,2497.4,0.66471983]
[1750908287856,0.12505563,2497.7,2497.4,0.66471983]
[1750908288156,10.2,2497.8,2497.4,0.66471983]
[1750908288358,0.12505564,2497.7,2497.4,0.66471983]
[1750908288666,10.2,2497.8,2497.4,0.66471983]
[1750908288832,0.12505561,2497.7,2497.4,0.66471983]
[1750908289030,10.2,2497.8,2497.4,0.66471983]
[1750908289031,10.2,2497.8,2497.5,0.53118682]
[1750908289240,0.2,2497.8,2497.5,0.53118682]
[1750908289462,0.12505559,2497.7,2497.5,0.53118682]
[1750908289639,0.2,2497.8,2497.5,0.53118682]
[1750908289830,0.12505797,2497.7,2497.5,0.53118682]
[1750908290036,0.2,2497.8,2497.5,0.53118682]
[1750908290245,0.12505795,2497.7,2497.5,0.53118682]
[1750908290441,0.2,2497.8,2497.5,0.53118682]
[1750908290648,0.12505699,2497.7,2497.5,0.53118682]
[1750908290856,0.2,2497.8,2497.5,0.53118682]
[1750908291067,0.12505627,2497.7,2497.5,0.53118682]
[1750908291262,0.2,2497.8,2497.5,0.53118682]
[1750908291467,0.12505626,2497.7,2497.5,0.53118682]
[1750908291668,0.2,2497.8,2497.5,0.53118682]
[1750908291968,0.12505651,2497.7,2497.5,0.53118682]
[1750908292167,0.2,2497.8,2497.5,0.53118682]
[1750908292340,0.12505566,2497.7,2497.5,0.53118682]
[1750908292539,0.2,2497.8,2497.5,0.53118682]
[1750908292540,0.12505566,2497.6,2497.5,0.53118682]
[1750908292940,0.2,2497.8,2497.5,0.53118682]
[1750908293140,0.12505587,2497.7,2497.5,0.53118682]
[1750908293366,0.12505587,2497.6,2497.5,0.53118682]
[1750908294947,0.2,2497.8,2497.5,0.53118682]
[1750908295271,0.12505186,2497.7,2497.5,0.53118682]
[1750908295471,0.12505186,2497.6,2497.5,0.53118682]
[1750908296054,0.12505186,2497.6,2497.5,4.53519082]
[1750908296260,1.945,2498.0,2497.5,4.73519082]
[1750908296443,0.12504806,2497.9,2497.5,4.73519082]
[1750908296645,0.12504806,2497.8,2497.5,4.73519082]
[1750908296943,0.12504806,2497.7,2497.5,0.73118682]
[1750908297147,2.145,2498.0,2497.5,0.73118682]
[1750908297444,0.12505081,2497.9,2497.5,0.2]
[1750908297754,0.12505081,2497.8,2497.5,0.2]
[1750908297952,0.12505081,2497.7,2497.5,0.2]
[1750908298172,0.12505081,2497.6,2497.3,0.64288574]
[1750908298474,0.12505081,2497.5,2497.3,0.4204015]
[1750908298641,0.12505081,2497.4,2497.3,0.4204015]
[1750908299064,0.12505081,2497.4,2497.3,0.2204015]
[1750908299786,2.07005081,2497.4,2497.3,0.2204015]
[1750908300189,13.02926117,2497.4,2497.3,0.2204015]
[1750908300360,15.02450071,2497.4,2497.3,0.2204015]
[1750908300680,14.06529035,2497.4,2497.3,0.2204015]
[1750908301979,15.57416894,2497.4,2497.3,0.2204015]
[1750908302181,15.02416894,2497.4,2497.3,0.2204015]
[1750908303662,15.02420687,2497.4,2497.3,0.2204015]
[1750908303882,21.96720687,2497.4,2497.3,0.2204015]
[1750908305172,21.84211813,2497.4,2497.3,0.2204015]
[1750908306157,20.88323954,2497.4,2497.3,0.2204015]
[1750908306361,10.0,2497.4,2497.3,0.2204015]
[1750908306582,19.21108661,2497.4,2497.3,0.2204015]
[1750908306788,2.27108661,2497.4,2497.3,0.2204015]
[1750908307362,11.552,2498.1,2497.3,4.97702617]
[1750908307567,0.2,2497.9,2497.4,4.00402188]
[1750908307769,0.12505245,2497.8,2497.4,4.92212669]
[1750908307967,0.12505245,2497.7,2497.4,4.92212669]
[1750908308191,0.12505245,2497.6,2497.4,4.92212669]
[1750908308487,0.12505245,2497.5,2497.4,4.92212669]
[1750908309171,0.2,2498.3,2497.7,4.00356362]
[1750908309477,0.12503662,2498.2,2497.9,0.2]
[1750908309804,0.12503662,2498.1,2498.0,0.762]
[1750908310305,0.1250297,2498.1,2498.0,4.76520256]
[1750908310507,1.946,2498.5,2498.0,4.96520256]
[1750908310809,0.12502637,2498.4,2498.2,4.00276658]
[1750908311103,0.12502637,2498.3,2498.2,4.00276658]
[1750908311274,1.946,2498.5,2498.2,4.20276658]
[1750908311605,0.12501851,2498.4,2498.2,4.20276658]
[1750908311906,0.2,2498.6,2498.3,4.00272185]
[1750908312085,0.1250157,2498.5,2498.4,0.42027219]
[1750908312705,0.2,2498.9,2498.5,4.0022759]
[1750908312909,0.2,2498.9,2498.4,1.22757219]
[1750908312910,0.12500258,2498.8,2498.4,1.42757219]
[1750908313108,0.12500258,2498.7,2498.4,1.42757219]
[1750908313410,0.2,2498.9,2498.5,0.54302722]
[1750908313581,0.1250046,2498.8,2498.4,1.0073]
[1750908313782,0.2,2498.9,2498.4,5.00986069]
[1750908314111,0.1250039,2498.8,2498.5,4.00236196]
[1750908314307,0.2,2498.9,2498.5,4.00236196]
[1750908314492,0.12500281,2498.8,2498.5,4.00236196]
[1750908314805,0.2,2498.9,2498.6,0.5009662]
[1750908315010,0.12500282,2498.8,2498.6,0.5009662]
[1750908315190,0.2,2498.9,2498.6,4.50317203]
[1750908315592,0.2,2498.9,2498.6,0.5009662]
[1750908316309,0.12500229,2499.2,2498.6,0.5009662]
[1750908316609,0.32500229,2499.1,2498.6,4.20218808]
[1750908316818,0.2,2499.1,2498.6,4.20222399]
[1750908317115,0.32498966,2499.1,2498.7,4.00208108]
[1750908317413,0.2,2499.1,2498.7,4.00208108]
[1750908318008,13.17630957,2500.9,2499.6,4.00053628]
[1750908318009,1.933,2500.8,2499.6,4.00053628]
[1750908318309,1.933,2500.8,2499.1,4.82813073]
[1750908318310,3.99904023,2500.6,2499.4,4.00091635]
[1750908318523,10.1249381,2500.5,2499.4,4.00091635]
[1750908318700,0.1249381,2500.4,2499.1,0.8267]
[1750908318891,0.1249381,2500.3,2499.1,0.8267]
[1750908319091,0.1249381,2500.2,2499.1,0.8267]
[1750908319299,0.1249381,2500.3,2499.1,0.8267]
[1750908319588,0.1249381,2500.3,2499.5,4.00076794]
[1750908320713,1.932,2500.2,2499.5,4.00076794]
[1750908320913,1.932,2500.2,2499.5,4.80094941]
[1750908322291,0.55,2500.0,2499.1,0.8267]
[1750908322613,0.55,2499.6,2498.7,4.00206432]
[1750908322805,1.932,2499.5,2498.7,4.00206432]
[1750908325702,1.932,2499.5,2498.8,4.00187819]
[1750908326093,1.932,2499.5,2499.0,4.00158189]
[1750908326293,1.932,2499.5,2499.0,4.8019279]
[1750908326513,1.932,2499.5,2498.7,4.00198447]
[1750908326703,1.932,2499.5,2498.6,0.7832]
[1750908326905,1.932,2499.5,2498.7,4.00198535]
[1750908327913,0.2,2499.2,2498.8,4.20183072]
[1750908328618,1.932,2499.5,2498.9,4.00166051]
[1750908328922,0.2,2499.3,2498.9,4.20166051]
[1750908329124,0.2,2499.3,2498.9,0.2]
[1750908331328,10.55,2499.3,2498.0,0.7845]
[1750908331493,0.2,2498.9,2498.0,4.78760971]
[1750908331823,0.2,2498.5,2498.0,4.98766359]
[1750908332229,0.2,2498.5,2498.2,4.00278023]
[1750908332394,2.132,2498.7,2498.3,0.2]
[1750908335742,0.12502567,2498.6,2497.9,4.00334124]
[1750908335901,0.2,2498.5,2498.0,0.2]
[1750908336210,4.12730031,2498.6,2497.5,4.00384849]
[1750908336396,0.2,2498.2,2497.7,0.2]
[1750908336826,0.12502567,2498.3,2497.4,7.738]
[1750908337043,0.12502567,2498.3,2497.6,0.2]
[1750908337044,0.2,2498.0,2497.6,0.2]
[1750908337204,0.2,2498.0,2497.3,4.22472161]
[1750908337205,0.2,2497.9,2497.4,0.2]
[1750908337946,0.2,2497.6,2497.3,0.2204015]
[1750908339952,2.12,2497.6,2497.3,0.2204015]
[1750908340244,0.33702567,2497.5,2497.3,0.2204015]
[1750908340798,0.12502567,2497.4,2497.3,0.2204015]
[1750908341534,0.33702567,2497.5,2497.3,0.2204015]
[1750908343631,0.33709241,2497.5,2497.3,0.2204015]
[1750908344144,0.33709096,2497.5,2497.3,0.2204015]
[1750908344311,0.12509096,2497.5,2497.3,0.2204015]
[1750908344510,0.75,2497.4,2497.3,0.2204015]
[1750908344711,0.87509855,2497.4,2497.3,0.2204015]
[1750908346565,0.75,2497.4,2497.3,0.2204015]
[1750908347123,0.2,2497.4,2497.3,0.2204015]
[1750908347314,1.921,2497.7,2497.3,0.2204015]
[1750908347623,10.67509364,2497.6,2497.3,0.2204015]
[1750908347941,1.25960936,2497.5,2497.3,0.2204015]
[1750908352451,10.0,2497.6,2497.3,0.2204015]
[1750908355451,0.12508505,2497.5,2497.3,0.2204015]
[1750908355623,10.0,2497.6,2497.3,0.2204015]
[1750908355825,0.1250831,2497.5,2497.3,0.2204015]
[1750908356047,0.12508135,2497.5,2497.3,0.2204015]
[1750908356252,1.32968949,2497.5,2497.3,0.2204015]
[1750908356444,0.12508135,2497.4,2497.3,0.2204015]
[1750908357925,0.67508135,2497.4,2497.3,0.2204015]
[1750908358126,10.67508135,2497.4,2497.3,0.2204015]
[1750908358754,0.55,2497.2,2496.4,0.7572]
[1750908358928,0.2,2496.7,2496.4,0.7572]
[1750908359329,0.12508135,2496.6,2496.4,0.7572]
[1750908360023,0.12511976,2496.6,2496.4,0.7572]
[1750908360449,0.2,2496.7,2496.4,0.7572]
[1750908360831,0.12511727,2496.6,2496.4,0.7572]
[1750908361169,0.2,2496.7,2496.4,0.7572]
[1750908361338,0.2,2496.7,2496.3,1.84811654]
[1750908361339,0.12511752,2496.6,2496.3,1.84811654]
[1750908361539,0.32511752,2496.5,2496.1,0.9814]
[1750908361730,0.12511752,2496.4,2496.1,4.98764301]
[1750908361930,0.2,2496.5,2496.1,4.98764301]
[1750908362126,0.12512572,2496.4,2495.2,0.7863]
[1750908362390,10.0,2496.0,2495.2,0.9863]
[1750908362569,0.2,2495.3,2495.2,0.7863]
[1750908362776,0.12516641,2495.8,2495.2,4.79397758]
[1750908362932,0.12516641,2495.7,2495.2,0.7863]
[1750908363131,0.12516641,2495.6,2495.2,0.7863]
[1750908363342,0.12517074,2495.5,2495.4,0.2]
[1750908363537,0.12517074,2495.5,2495.2,0.7863]
[1750908363753,1.921,2496.0,2495.3,4.00753416]
[1750908363754,0.2,2495.6,2495.3,4.00753416]
[1750908364092,0.2,2495.8,2495.4,0.2]
[1750908364292,0.12516565,2495.7,2495.2,0.7863]
[1750908364445,0.32516565,2495.6,2495.2,0.7863]
[1750908364646,0.12517671,2495.5,2494.9,0.8211]
[1750908364920,0.12517671,2495.4,2494.9,0.8211]
[1750908365087,2.04617671,2495.3,2494.8,0.2204015]
[1750908365291,0.12517671,2495.2,2494.8,0.2204015]
[1750908365488,0.12517671,2495.1,2494.8,0.2204015]
[1750908365672,1.41321995,2495.5,2494.8,0.2204015]
[1750908365847,1.26650853,2495.4,2494.8,0.2204015]
[1750908366052,0.12518653,2495.3,2494.8,0.2204015]
[1750908366249,0.12518653,2495.2,2494.8,0.2204015]
[1750908366493,0.12518653,2495.1,2494.8,0.2204015]
[1750908366691,0.12518653,2495.0,2494.8,0.2204015]
[1750908366890,0.12518653,2494.9,2494.8,0.2204015]
[1750908367597,0.12518653,2494.9,2493.2,0.7521]
[1750908367598,0.55,2494.8,2493.2,0.7521]
[1750908367757,10.0,2494.6,2493.6,4.01013884]
[1750908367957,0.12518653,2494.5,2493.6,4.01013884]
[1750908368182,0.12518653,2494.5,2493.3,0.7521]
[1750908368384,0.67518653,2494.4,2493.4,4.01045568]
[1750908368697,0.55,2494.2,2493.3,0.7521]
[1750908368863,0.9375,2494.1,2493.3,0.7521]
[1750908369072,0.9375,2494.1,2493.3,4.76276985]
[1750908369409,10.0,2494.0,2493.6,4.01026478]
[1750908369702,18.04658286,2494.7,2494.2,4.00915996]
[1750908369703,10.0,2494.6,2494.2,4.00915996]
[1750908370113,4.82211865,2494.7,2493.7,4.76214042]
[1750908370284,9.611,2494.9,2494.3,0.7521]
[1750908370483,9.611,2494.9,2494.7,4.00838855]
[1750908370823,9.611,2494.9,2494.6,4.00861935]
[1750908371282,0.30776381,2495.5,2494.3,0.7521]
[1750908371283,1.41150029,2496.9,2494.3,0.7521]
[1750908371484,1.911,2495.5,2494.3,4.7611581]
[1750908371690,1.911,2495.4,2494.3,4.7611581]
[1750908371888,1.911,2495.4,2494.9,4.00805663]
[1750908372177,1.911,2495.4,2494.6,4.00864202]
[1750908372178,0.12518712,2495.3,2494.6,4.00864202]
[1750908372381,0.12518712,2495.3,2494.3,4.76117043]
[1750908372594,0.12518712,2495.3,2494.9,4.00817331]
[1750908372789,1.911,2495.4,2495.1,4.00783129]
[1750908373512,1.911,2495.6,2495.2,4.00754142]
[1750908374018,1.911,2495.6,2494.9,0.7726]
[1750908374394,1.911,2495.6,2495.3,4.00743095]
[1750908374592,10.57692876,2496.1,2494.9,0.7726]
[1750908374593,0.2,2495.5,2495.1,0.2]
[1750908374800,1.911,2495.9,2495.5,4.00719157]
[1750908375113,0.12515696,2495.8,2495.5,4.00719157]
[1750908375309,0.12515696,2495.8,2494.6,4.00851381]
[1750908375608,0.12515696,2495.7,2494.7,0.48192138]
[1750908375812,0.12517073,2495.6,2495.1,4.00780043]
[1750908375985,0.12517073,2495.6,2494.9,4.00805137]
[1750908375986,6.905,2495.6,2494.9,4.00805137]
[1750908376184,0.12517402,2495.5,2494.9,4.00805137]
[1750908376511,0.12517402,2495.5,2494.8,4.00827853]
[1750908376716,0.82819142,2495.5,2494.8,4.00827853]
[1750908377011,6.905,2495.6,2495.1,4.00774567]
[1750908377315,0.12517225,2495.5,2494.8,4.00829597]
[1750908377519,0.12517225,2495.4,2494.7,4.00843679]
[1750908377817,10.57692876,2495.1,2493.3,0.7738]
[1750908377989,10.57692876,2495.1,2494.2,4.00928225]
[1750908377990,10.0,2494.9,2494.2,4.00928225]
[1750908378190,10.0,2494.9,2494.4,4.00886684]
[1750908378380,10.0,2494.9,2493.6,0.7738]
[1750908378584,10.0,2494.9,2494.2,0.7738]
[1750908378796,10.0,2494.9,2494.3,4.00910455]
[1750908378988,10.0,2494.9,2493.4,1.911]
[1750908378989,0.12520828,2494.8,2493.8,0.822]
[1750908379213,0.12520828,2494.8,2494.1,4.00935417]
[1750908379418,11.08580664,2495.9,2494.7,4.00839773]
[1750908379713,14.58417137,2495.5,2494.4,4.00890661]
[1750908379920,14.68261907,2495.4,2494.0,0.822]
[1750908380082,14.68261907,2495.4,2493.7,4.01004996]
[1750908380083,10.55,2495.0,2493.3,0.7923]
[1750908380289,8.94120668,2494.9,2493.9,4.00967967]
[1750908380489,12.47513167,2494.8,2494.0,4.0096084]
[1750908380820,12.47513167,2494.8,2493.1,10.0]
[1750908380821,10.55,2494.6,2493.2,4.01090967]
[1750908381118,0.12520668,2494.5,2493.2,4.01090967]
[1750908381315,10.57692876,2494.3,2493.5,4.01039002]
[1750908381519,12.03620668,2494.2,2493.5,4.01039002]
[1750908381719,0.12520668,2494.1,2493.5,4.01039002]
[1750908381919,14.17231354,2494.2,2493.5,4.01039002]
[1750908382118,2.26131354,2494.2,2493.3,0.7571]
[1750908382316,1.911,2494.1,2493.7,4.00997038]
[1750908382626,0.12525789,2494.0,2493.2,4.01078631]
[1750908382830,0.12525568,2494.1,2493.2,4.01078631]
[1750908383026,0.12525568,2494.0,2493.5,4.01031766]
[1750908383210,1.911,2493.9,2493.5,4.01030214]
[1750908383401,0.55,2494.5,2493.2,4.82256512]
[1750908383637,12.03624484,2494.4,2493.7,4.009991]
[1750908383795,11.911,2494.4,2493.7,4.009991]
[1750908384138,11.911,2494.4,2493.9,4.00976596]
[1750908384293,2.34992499,2494.8,2494.1,4.00931857]
[1750908384492,10.0,2494.6,2493.5,4.01029354]
[1750908384723,0.2,2494.1,2493.7,0.2]
[1750908385025,1.912,2494.0,2493.7,0.2]
[1750908385721,1.912,2494.0,2493.4,0.2]
[1750908385722,0.2,2493.9,2493.4,0.2]
[1750908385910,10.0,2493.9,2493.6,0.2]
[1750908386237,1.33644849,2493.8,2493.0,4.82512418]
[1750908386522,0.12524849,2493.7,2493.0,4.82512418]
[1750908386699,5.56319564,2493.4,2492.4,0.55]
[1750908386901,3.96272125,2492.9,2492.8,4.01155327]
[1750908387104,3.96272125,2492.9,2492.7,4.0116592]
[1750908387105,0.9510775,2492.9,2492.7,4.0116592]
[1750908387305,4.91422461,2492.8,2492.7,0.80233978]
[1750908387501,4.91540574,2492.8,2492.3,0.2204015]
[1750908387705,3.17152227,2492.5,2492.4,4.01219707]
[1750908387917,0.9510775,2492.5,2492.4,4.01219707]
[1750908388432,0.9510775,2492.5,2492.4,4.56219707]
[1750908388638,3.33055921,2492.5,2492.4,4.01219707]
[1750908388840,2.70607935,2492.5,2492.4,14.56219707]
[1750908389139,3.17167629,2492.9,2492.8,4.01155327]
[1750908389425,3.96432824,2493.2,2493.1,4.01107055]
[1750908389720,3.96432824,2493.4,2493.2,4.0109001]
[1750908389940,9.52752388,2493.6,2493.3,4.0107488]
[1750908390152,3.96432824,2493.6,2493.2,4.01090454]
[1750908390349,3.1735689,2493.4,2493.3,4.0107488]
[1750908390757,3.1735689,2493.4,2493.1,0.83]
[1750908390955,3.17625992,2493.3,2493.2,4.01090967]
[1750908391162,3.96432824,2493.7,2493.3,4.0107488]
[1750908391465,3.96432824,2493.6,2493.2,4.01089945]
[1750908391654,3.17927583,2493.3,2493.1,4.8410386]
[1750908391850,3.96432824,2493.5,2493.2,4.01089312]
[1750908392167,3.96432824,2493.5,2493.1,0.83]
[1750908392339,3.17941759,2493.2,2493.1,4.84107055]
[1750908393147,3.96432824,2493.6,2493.2,4.01090967]
[1750908393148,3.17941759,2493.3,2493.2,4.01090967]
[1750908393351,3.96432824,2493.6,2493.5,4.84042711]
[1750908393558,3.17948476,2493.6,2493.5,4.84042711]
[1750908393778,3.17948476,2493.7,2493.6,4.01026628]
[1750908394466,3.17948476,2493.7,2493.6,11.77726628]
[1750908394649,1.59011341,2493.8,2493.7,4.84010546]
[1750908394827,1.59011341,2493.9,2493.8,14.83994466]
[1750908395028,1.59011341,2493.9,2493.8,15.38994466]
[1750908395532,1.59011341,2494.0,2493.9,14.00978387]
[1750908395837,3.17948476,2494.7,2494.5,0.83]
[1750908396047,3.17948476,2494.7,2494.6,4.0086587]
[1750908396357,3.17948476,2494.7,2494.6,4.2086587]
[1750908396540,3.17948476,2494.8,2494.7,4.00849801]
[1750908396729,3.17948476,2494.9,2494.6,4.20854168]